[Event "WYCC 2018 G18"]
[Site "Halkidiki"]
[Date "2018.10.21"]
[Round "3"]
[White "Cvitan, Ena"]
[Black "Tonso, Liina"]
[Result "1-0"]
[ECO "A44"]
[WhiteElo "2034"]
[BlackElo "1805"]
[Annotator "NA"]
[PlyCount "45"]
[EventDate "2018.10.20"]
[EventType "swiss"]
[EventCountry "GRE"]
[SourceTitle "playchess.com"]
[Source "ChessBase"]
[SourceQuality "1"]
[TimeControl "40/5400+30:1800+30"]

1. d4 {[%emt 0:00:00]} c5 {[%emt 0:00:00]} 2. d5 {[%emt 0:00:18]} e5 {[%emt 0:00:00]} 3. e4 {[%emt 0:01:02]} d6 {[%emt 0:00:37]} 4. c4 {[%emt 0:01:49]} Be7 {[%emt 0:02:03]} 5. b3 {[%emt 0:00:31]} f5 {[%emt 0:07:53]} 6. Nc3 {[%emt 0:01:14]} Nf6 {[%emt 0:02:37]} 7. Bd3 {[%emt 0:01:04]} g6 {[%emt 0:06:43]} 8. Qc2 {[%emt 0:11:21]} Na6 {[%emt 0:13:16]} 9. a3 {[%emt 0:11:34]} fxe4 {[%emt 0:06:14]} 10. Nxe4 {[%emt 0:01:43]} O-O {[%emt 0:02:15]} 11. Bh6 {[%emt 0:11:18]} Qa5+ {[%emt 0:16:36]} 12. Kf1 {[%emt 0:02:11]} Nxe4 {[%emt 0:02:02]} 13. Bxe4 {[%emt 0:13:40]} Rf6 {[%emt 0:01:24]} 14. Ne2 {[%emt 0:09:09]} Bd7 {[%emt 0:03:50]} 15. h4 {[%emt 0:02:56]} Bf8 {[%emt 0:03:16]} 16. Bg5 {[%emt 0:02:00]} Rf7 {[%emt 0:01:59]} 17. h5 {[%emt 0:04:12]} Bf5 {[%emt 0:02:56]} 18. hxg6 {[%emt 0:01:07]} hxg6 {[%emt 0:00:56]} 19. Ng3 {[%emt 0:00:44]} Bg7 {[%emt 0:04:39]} 20. Nxf5 {[%emt 0:02:39]} Nb4 {[%emt 0:05:40]} 21. Qb1 {[%emt 0:01:49]} gxf5 {[%emt 0:01:48]} 22. axb4 {[%emt 0:00:30]} Qxb4 {[%emt 0:00:22]} 23. Bxf5 {[%emt 0:00:37]} 1-0

[Event "WYCC 2018 G18"]
[Site "Halkidiki"]
[Date "2018.10.21"]
[Round "3"]
[White "Hng, Mei-En Emmanuelle"]
[Black "Chitlange Sakshi"]
[Result "0-1"]
[ECO "B12"]
[WhiteElo "2020"]
[BlackElo "2237"]
[Annotator "NA"]
[PlyCount "104"]
[EventDate "2018.10.20"]
[EventType "swiss"]
[EventCountry "GRE"]
[SourceTitle "playchess.com"]
[Source "ChessBase"]
[SourceQuality "1"]
[TimeControl "40/5400+30:1800+30"]

1. e4 {[%emt 0:00:00]} c6 {[%emt 0:00:00]} 2. d4 {[%emt 0:00:00]} d5 {[%emt 0:00:00]} 3. e5 {[%emt 0:00:00]} Bf5 {[%emt 0:00:00]} 4. h4 {[%emt 0:00:04]} h5 {[%emt 0:00:07]} 5. c4 {[%emt 0:00:23]} e6 {[%emt 0:00:11]} 6. Nc3 {[%emt 0:00:45]} Ne7 {[%emt 0:00:55]} 7. Bg5 {[%emt 0:03:02]} dxc4 {[%emt 0:03:56]} 8. Bxc4 {[%emt 0:01:59]} Nd7 {[%emt 0:00:42]} 9. Nf3 {[%emt 0:06:13] B12: Caro-Kann: Advance Variation} (9. Nge2 Nb6 10. Bb3 Qd7 11. Qd2 Ned5 12. Rd1 Be7 13. Ng3 Bg6 14. Bxe7 Qxe7 15. Nce4 O-O-O 16. Nd6+ Kb8 {½-½ (43) McShane,L (2674)-Shimanov,A (2593) Las Vegas 2015}) 9... f6 {[%emt 0:02:03]} 10. Be3 {[%emt 0:05:35]} Nb6 {[%emt 0:08:59]} 11. Bd3 {[%emt 0:06:16]} Qd7 $146 {[%emt 0:03:09]} ({Predecessor:} 11... Nbd5 12. O-O Qd7 13. Na4 b6 14. a3 Bxd3 15. Qxd3 Nf5 16. Rfc1 Be7 {0-1 (38) Den Hartog,M (2102)-Gomez Jurado,L (2302) Barcelona 2014}) 12. Ne4 {[%emt 0:05:29]} Ned5 {[%emt 0:01:26]} 13. O-O {[%emt 0:05:33]} Bg4 {[%emt 0:13:54]} 14. Be2 {[%emt 0:21:51]} O-O-O {[%emt 0:08:38]} 15. Qb3 {[%emt 0:11:41]} Be7 {[%emt 0:03:11]} 16. Nc5 {[%emt 0:02:02]} Bxc5 {[%emt 0:12:07]} 17. dxc5 {[%emt 0:00:06]} Nxe3 {[%emt 0:00:04]} 18. Qxe3 {[%emt 0:01:00]} Nd5 {[%emt 0:00:56]} 19. Qe4 {[%emt 0:03:01]} Qe7 {[%emt 0:08:46]} 20. Rac1 {[%emt 0:02:44]} f5 {[%emt 0:00:50]} 21. Qa4 {[%emt 0:03:33]} Kb8 {[%emt 0:00:05]} 22. Rfe1 {[%emt 0:00:28]} Bxf3 {[%emt 0:03:15]} 23. Bxf3 {[%emt 0:00:09]} g5 {[%emt 0:00:03]} 24. Rc4 {[%emt 0:04:08]} g4 {[%emt 0:04:55]} 25. Bxd5 {[%emt 0:02:33]} Rxd5 {[%emt 0:00:00]} 26. g3 {[%emt 0:00:18]} Rhd8 {[%emt 0:00:44]} 27. b4 {[%emt 0:02:22]} Qd7 {[%emt 0:02:37]} 28. Qb3 {[%emt 0:01:53]} Rd1 {[%emt 0:05:41]} 29. Rc1 {[%emt 0:02:52]} Rd3 {[%emt 0:03:21]} 30. Rc3 {[%emt 0:00:27]} Rxc3 {[%emt 0:05:00]} 31. Qxc3 {[%emt 0:00:01]} a6 {[%emt 0:03:13]} 32. a3 {[%emt 0:05:50]} Qd5 {[%emt 0:04:35]} 33. Rc1 {[%emt 0:01:37]} Rd7 {[%emt 0:00:31]} 34. Re1 {[%emt 0:02:08]} Kc7 {[%emt 0:01:10]} 35. Qe3 {[%emt 0:00:43]} Qd2 {[%emt 0:01:13]} 36. Re2 {[%emt 0:00:37]} Qd3 {[%emt 0:00:01]} 37. Qxd3 {[%emt 0:00:32]} Rxd3 {[%emt 0:01:32]} 38. Ra2 Rd1+ {[%emt 0:00:20]} 39. Kg2 {[%emt 0:00:38]} Re1 40. f4 {[%emt 0:00:00]} gxf3+ {[%emt 0:00:00]} 41. Kxf3 {[%emt 0:00:55]} Rxe5 {[%emt 0:01:19]} 42. Kf4 {[%emt 0:03:54]} Re4+ {[%emt 0:00:14]} 43. Kg5 {[%emt 0:00:18]} Rg4+ {[%emt 0:00:36]} 44. Kf6 {[%emt 0:00:09]} Rxg3 {[%emt 0:01:45]} 45. Kxe6 {[%emt 0:01:34]} Rg4 {[%emt 0:07:16]} 46. Kxf5 {[%emt 0:07:25]} Rxh4 {[%emt 0:00:05]} 47. Kg5 {[%emt 0:01:25]} Rh3 {[%emt 0:00:57]} 48. Rf2 {[%emt 0:03:45]} (48. Kf4 $142) 48... Rxa3 {[%emt 0:02:45]} 49. Rf7+ {[%emt 0:00:06]} Kb8 {[%emt 0:00:04]} 50. Kxh5 {[%emt 0:00:10]} Ra4 {[%emt 0:03:59]} 51. Rf4 {[%emt 0:00:49]} Ka7 {[%emt 0:00:06]} 52. Kg5 {[%emt 0:00:43]} a5 $19 {[%emt 0:00:20]} 0-1

[Event "WYCC 2018 G18"]
[Site "Halkidiki"]
[Date "2018.10.21"]
[Round "3"]
[White "Bauyrzhan, Arnash"]
[Black "Di Benedetto, Desiree"]
[Result "1/2-1/2"]
[ECO "C05"]
[WhiteElo "2011"]
[BlackElo "2321"]
[Annotator "NA"]
[PlyCount "81"]
[EventDate "2018.10.20"]
[EventType "swiss"]
[EventCountry "GRE"]
[SourceTitle "playchess.com"]
[Source "ChessBase"]
[SourceQuality "1"]
[TimeControl "40/5400+30:1800+30"]

1. e4 {[%emt 0:00:00]} e6 {[%emt 0:00:00]} 2. d4 {[%emt 0:00:00]} d5 {[%emt 0:00:00]} 3. Nd2 {[%emt 0:01:03]} Nf6 {[%emt 0:01:07]} 4. e5 {[%emt 0:00:26]} Nfd7 {[%emt 0:00:09]} 5. Bd3 {[%emt 0:00:33]} b6 {[%emt 0:00:19]} 6. c3 {[%emt 0:02:01]} c5 {[%emt 0:02:00]} 7. Ne2 {[%emt 0:01:14]} Ba6 {[%emt 0:01:24]} 8. Bxa6 {[%emt 0:06:09]} Nxa6 {[%emt 0:00:04]} 9. O-O {[%emt 0:00:14]} Be7 {[%emt 0:01:07]} 10. f4 {[%emt 0:00:58]} Nc7 {[%emt 0:02:42]} 11. Nf3 {[%emt 0:01:20]} Nb8 {[%emt 0:19:22]} 12. Be3 {[%emt 0:05:18]} Nc6 {[%emt 0:00:54]} 13. Qe1 {[%emt 0:01:08]} Qd7 {[%emt 0:03:40]} 14. Qg3 {[%emt 0:03:14]} g6 {[%emt 0:07:36]} 15. Qf2 {[%emt 0:01:25]} c4 {[%emt 0:01:56]} 16. Nd2 {[%emt 0:04:15]} h5 {[%emt 0:05:23]} 17. Qf3 {[%emt 0:01:14]} b5 {[%emt 0:08:28]} 18. b3 $11 {[%emt 0:01:46]} a6 {[%emt 0:05:56]} 19. a4 {[%emt 0:08:16]} Na5 {[%emt 0:03:27]} 20. axb5 {[%emt 0:05:40]} axb5 {[%emt 0:12:20]} 21. b4 {[%emt 0:12:15]} Nc6 {[%emt 0:00:54]} 22. Rxa8+ {[%emt 0:00:53]} Nxa8 {[%emt 0:00:01]} 23. Ra1 {[%emt 0:01:18]} Nb6 {[%emt 0:01:38]} 24. Nb1 {[%emt 0:04:21]} Qb7 {[%emt 0:11:33]} 25. Na3 {[%emt 0:02:43]} Na4 {[%emt 0:03:08]} 26. Nc2 {[%emt 0:04:39]} Kd7 {[%emt 0:00:31]} 27. Bd2 {[%emt 0:00:38]} Ra8 {[%emt 0:01:09]} 28. f5 {[%emt 0:01:00]} gxf5 {[%emt 0:01:50]} 29. Qxh5 {[%emt 0:00:20]} Nd8 {[%emt 0:00:47]} 30. Bg5 {[%emt 0:02:57]} Nb2 {[%emt 0:02:45]} 31. Rxa8 {[%emt 0:00:46]} Qxa8 {[%emt 0:00:02]} 32. Bxe7 {[%emt 0:00:19]} Kxe7 {[%emt 0:00:07]} 33. Qg5+ {[%emt 0:00:36]} Kd7 {[%emt 0:00:09]} 34. h4 {[%emt 0:05:11]} Nc6 {[%emt 0:00:24]} 35. h5 {[%emt 0:01:18]} Qh8 {[%emt 0:01:15]} 36. h6 {[%emt 0:00:50]} Ne7 37. Qf6 {[%emt 0:15:18]} Qh7 {[%emt 0:03:44]} 38. Nf4 {[%emt 0:05:14]} Ng8 {[%emt 0:00:14]} 39. Nxd5 {[%emt 0:01:56]} exd5 {[%emt 0:00:38]} 40. Qd6+ {[%emt 0:00:00]} Ke8 {[%emt 0:00:00]} 41. Qb8+ {[%emt 0:00:27]} 1/2-1/2

[Event "WYCC 2018 G18"]
[Site "Halkidiki"]
[Date "2018.10.21"]
[Round "3"]
[White "Li, Yilin"]
[Black "Martos Amiguet, Valentina"]
[Result "1-0"]
[ECO "B49"]
[WhiteElo "1993"]
[BlackElo "1775"]
[Annotator "NA"]
[PlyCount "51"]
[EventDate "2018.10.20"]
[EventType "swiss"]
[EventCountry "GRE"]
[SourceTitle "playchess.com"]
[Source "ChessBase"]
[SourceQuality "1"]
[TimeControl "40/5400+30:1800+30"]

1. e4 {[%emt 0:00:00]} c5 {[%emt 0:00:00]} 2. Nf3 {[%emt 0:00:00]} a6 {[%emt 0:00:00]} 3. Nc3 {[%emt 0:01:47]} e6 {[%emt 0:00:04]} 4. d4 {[%emt 0:03:29]} cxd4 {[%emt 0:00:08]} 5. Nxd4 {[%emt 0:00:02]} Nc6 {[%emt 0:00:20]} 6. Be3 {[%emt 0:01:45]} Qc7 {[%emt 0:10:53]} 7. Be2 {[%emt 0:02:33]} Nf6 {[%emt 0:00:24]} 8. O-O {[%emt 0:04:16]} Be7 {[%emt 0:00:15]} 9. f4 {[%emt 0:01:00]} d6 {[%emt 0:04:56]} 10. Kh1 {[%emt 0:03:22]} O-O {[%emt 0:00:52]} 11. Qe1 {[%emt 0:00:32]} Nxd4 {[%emt 0:06:36]} 12. Bxd4 {[%emt 0:00:03]} e5 {[%emt 0:08:11]} 13. fxe5 {[%emt 0:06:08]} dxe5 {[%emt 0:00:07]} 14. Qg3 {[%emt 0:00:28]} Nd7 {[%emt 0:15:44]} 15. Bg4 {[%emt 0:11:38]} Qd6 {[%emt 0:04:15]} 16. Be3 {[%emt 0:18:16]} Qg6 {[%emt 0:01:02]} 17. Nd5 {[%emt 0:01:39]} Bd8 {[%emt 0:01:01]} 18. Qf3 {[%emt 0:19:42]} Nf6 {[%emt 0:06:38]} 19. Bf5 {[%emt 0:01:14]} Bxf5 {[%emt 0:01:15]} 20. exf5 {[%emt 0:00:10]} e4 {[%emt 0:06:36]} 21. Qe2 {[%emt 0:01:02]} Nxd5 {[%emt 0:05:51]} 22. fxg6 {[%emt 0:00:56]} hxg6 {[%emt 0:00:08]} 23. Rad1 {[%emt 0:00:44]} Nf6 {[%emt 0:01:03]} 24. c4 {[%emt 0:02:10]} Bc7 {[%emt 0:00:20]} 25. Bd4 {[%emt 0:00:54]} Rfe8 {[%emt 0:00:43]} 26. Bxf6 {[%emt 0:01:05]} 1-0

[Event "WYCC 2018 G18"]
[Site "Halkidiki"]
[Date "2018.10.21"]
[Round "3"]
[White "Nass, Sara"]
[Black "Salas Estrada, Ana Valeria"]
[Result "1-0"]
[ECO "B38"]
[WhiteElo "1986"]
[BlackElo "1593"]
[Annotator "NA"]
[PlyCount "89"]
[EventDate "2018.10.20"]
[EventType "swiss"]
[EventCountry "GRE"]
[SourceTitle "playchess.com"]
[Source "ChessBase"]
[SourceQuality "1"]
[TimeControl "40/5400+30:1800+30"]

1. e4 {[%emt 0:00:00]} c5 {[%emt 0:00:49]} 2. Nf3 {[%emt 0:00:00]} Nc6 {[%emt 0:00:17]} 3. d4 {[%emt 0:00:06]} cxd4 {[%emt 0:00:07]} 4. Nxd4 {[%emt 0:00:07]} g6 {[%emt 0:00:04]} 5. c4 {[%emt 0:00:13]} Bg7 {[%emt 0:00:23]} 6. Be3 {[%emt 0:03:39]} Nf6 {[%emt 0:01:32]} 7. Nc3 {[%emt 0:00:17]} Qa5 {[%emt 0:01:49]} 8. Nb3 {[%emt 0:06:52]} Qd8 {[%emt 0:03:12]} 9. Be2 {[%emt 0:02:27]} d6 {[%emt 0:02:20]} 10. O-O {[%emt 0:04:35]} O-O {[%emt 0:01:45]} 11. f4 {[%emt 0:04:07]} b6 {[%emt 0:06:53]} 12. Bf3 {[%emt 0:02:49]} e5 {[%emt 0:06:30]} 13. f5 {[%emt 0:05:51]} Ba6 {[%emt 0:08:42]} 14. Nd2 {[%emt 0:12:36]} Rc8 {[%emt 0:02:11]} 15. fxg6 {[%emt 0:05:12]} hxg6 {[%emt 0:04:30]} 16. b3 {[%emt 0:02:52]} Nd4 {[%emt 0:06:45]} 17. Rc1 {[%emt 0:03:05]} Nd7 {[%emt 0:04:33]} 18. Rf2 {[%emt 0:04:43]} Nc5 {[%emt 0:05:30]} 19. Nf1 {[%emt 0:01:07]} Nce6 {[%emt 0:05:44]} 20. Ng3 {[%emt 0:06:14]} Nf4 {[%emt 0:07:05]} 21. Bxf4 {[%emt 0:14:55]} exf4 {[%emt 0:06:09]} 22. Nge2 {[%emt 0:01:11]} Ne6 {[%emt 0:01:51]} 23. Nd5 {[%emt 0:03:55]} Be5 {[%emt 0:02:50]} 24. Bg4 {[%emt 0:01:37]} Qh4 {[%emt 0:05:28]} 25. h3 {[%emt 0:03:56]} f5 {[%emt 0:03:54]} 26. exf5 {[%emt 0:00:35]} gxf5 {[%emt 0:00:10]} 27. Bf3 {[%emt 0:00:45]} Rf7 {[%emt 0:00:35]} 28. Nb4 {[%emt 0:02:39]} Bb7 {[%emt 0:01:01]} 29. Bxb7 {[%emt 0:00:23]} Rxb7 {[%emt 0:00:06]} 30. Qd5 {[%emt 0:00:23]} Re7 {[%emt 0:05:46]} 31. Nd3 {[%emt 0:05:51]} Kf8 {[%emt 0:05:02]} 32. Nxe5 {[%emt 0:00:25]} dxe5 {[%emt 0:00:15]} 33. Qxe5 {[%emt 0:00:20]} Rc5 {[%emt 0:00:37]} 34. Qb8+ {[%emt 0:00:50]} Kf7 {[%emt 0:00:20]} 35. Nxf4 {[%emt 0:00:52]} Qg5 {[%emt 0:01:55]} 36. Rd1 {[%emt 0:00:38]} Re8 {[%emt 0:00:48]} 37. Qxa7+ {[%emt 0:01:13]} Rc7 {[%emt 0:00:29]} 38. Qxb6 {[%emt 0:00:32]} Rce7 {[%emt 0:00:26]} 39. Nxe6 {[%emt 0:00:49]} Rxe6 {[%emt 0:00:10]} 40. Qc7+ {[%emt 0:00:00]} R8e7 {[%emt 0:00:00]} 41. Qf4 {[%emt 0:01:15]} Re1+ {[%emt 0:02:28]} 42. Rxe1 {[%emt 0:00:08]} Rxe1+ {[%emt 0:00:16]} 43. Kh2 {[%emt 0:00:06]} Qxf4+ {[%emt 0:00:45]} 44. Rxf4 {[%emt 0:00:04]} Ke6 {[%emt 0:00:21]} 45. c5 {[%emt 0:01:00]} 1-0

[Event "WYCC 2018 G18"]
[Site "Halkidiki"]
[Date "2018.10.21"]
[Round "3"]
[White "Stashis, Anna"]
[Black "Saraci, Ndriqona"]
[Result "1-0"]
[ECO "B22"]
[WhiteElo "1979"]
[BlackElo "1263"]
[Annotator "NA"]
[PlyCount "71"]
[EventDate "2018.10.20"]
[EventType "swiss"]
[EventCountry "GRE"]
[SourceTitle "playchess.com"]
[Source "ChessBase"]
[SourceQuality "1"]
[TimeControl "40/5400+30:1800+30"]

1. e4 {[%emt 0:00:00]} c5 {[%emt 0:00:00]} 2. c3 {[%emt 0:00:00]} e6 {[%emt 0:00:00]} 3. d4 {[%emt 0:00:00]} cxd4 {[%emt 0:00:22]} 4. cxd4 {[%emt 0:00:14]} Nf6 {[%emt 0:04:19]} 5. Nc3 {[%emt 0:02:19]} d6 {[%emt 0:05:10]} 6. Bd3 {[%emt 0:03:09]} Nbd7 {[%emt 0:01:26]} 7. Nf3 {[%emt 0:02:51]} e5 {[%emt 0:05:43]} 8. O-O {[%emt 0:04:00]} a6 {[%emt 0:01:20]} 9. h3 {[%emt 0:03:09]} Be7 {[%emt 0:01:40]} 10. Be3 {[%emt 0:10:05]} O-O {[%emt 0:02:07]} 11. Qe2 {[%emt 0:07:44]} Re8 {[%emt 0:05:12]} 12. Bc4 {[%emt 0:15:34]} h6 {[%emt 0:04:02]} 13. a4 {[%emt 0:03:43]} Bf8 {[%emt 0:04:28]} 14. d5 {[%emt 0:05:10]} b6 {[%emt 0:08:28]} 15. Nd2 {[%emt 0:03:58]} Nb8 {[%emt 0:06:16]} 16. Bd3 {[%emt 0:03:01]} a5 {[%emt 0:01:50]} 17. Rfc1 {[%emt 0:08:34]} Ba6 {[%emt 0:05:43]} 18. Nb5 {[%emt 0:02:20]} Re7 {[%emt 0:00:39]} 19. Nc4 {[%emt 0:05:34]} Rb7 {[%emt 0:03:24]} 20. f4 {[%emt 0:01:53]} exf4 {[%emt 0:07:12]} 21. Bxf4 {[%emt 0:00:12]} Bxb5 {[%emt 0:00:13]} 22. axb5 {[%emt 0:00:07]} Be7 {[%emt 0:03:30]} 23. Ra4 {[%emt 0:03:02]} Ne8 {[%emt 0:01:30]} 24. b4 {[%emt 0:01:32]} Bg5 {[%emt 0:02:41]} 25. Qe3 {[%emt 0:01:57]} Bxf4 {[%emt 0:00:37]} 26. Qxf4 {[%emt 0:00:04]} Qg5 {[%emt 0:04:19]} 27. Qxg5 {[%emt 0:00:58]} hxg5 {[%emt 0:00:03]} 28. bxa5 {[%emt 0:00:50]} bxa5 {[%emt 0:00:44]} 29. Rxa5 {[%emt 0:00:14]} Rxa5 {[%emt 0:00:53]} 30. Nxa5 {[%emt 0:00:04]} Rb6 {[%emt 0:00:36]} 31. Rc8 {[%emt 0:00:35]} Kf8 {[%emt 0:00:38]} 32. Nc4 {[%emt 0:00:30]} Nd7 {[%emt 0:04:57]} 33. Nxb6 {[%emt 0:00:39]} Nxb6 {[%emt 0:00:02]} 34. Rc6 {[%emt 0:00:25]} Na4 {[%emt 0:00:35]} 35. b6 {[%emt 0:00:30]} Nc5 {[%emt 0:01:11]} 36. Rxc5 {[%emt 0:00:23]} 1-0

[Event "WYCC 2018 G18"]
[Site "Halkidiki"]
[Date "2018.10.21"]
[Round "3"]
[White "Caballero Quijano, Mitzy Mishell"]
[Black "Afonasieva, Anna"]
[Result "0-1"]
[ECO "D11"]
[WhiteElo "1956"]
[BlackElo "2245"]
[Annotator "NA"]
[PlyCount "52"]
[EventDate "2018.10.20"]
[EventType "swiss"]
[EventCountry "GRE"]
[SourceTitle "playchess.com"]
[Source "ChessBase"]
[SourceQuality "1"]
[TimeControl "40/5400+30:1800+30"]

1. d4 {[%emt 0:00:00]} d5 {[%emt 0:00:00]} 2. Nf3 {[%emt 0:00:00]} Nf6 {[%emt 0:00:00]} 3. c4 {[%emt 0:01:06]} c6 {[%emt 0:00:00]} 4. e3 {[%emt 0:00:14]} e6 {[%emt 0:00:17]} 5. b3 {[%emt 0:00:31]} Nbd7 {[%emt 0:00:54]} 6. Bd3 {[%emt 0:00:14]} Be7 {[%emt 0:00:44]} 7. O-O {[%emt 0:00:12]} O-O {[%emt 0:00:08]} 8. Nbd2 {[%emt 0:00:28]} b6 {[%emt 0:01:10]} 9. Bb2 {[%emt 0:01:00]} Bb7 {[%emt 0:00:26]} 10. Ne5 {[%emt 0:03:13]} Rc8 {[%emt 0:03:58]} 11. f4 {[%emt 0:02:29]} c5 {[%emt 0:04:15]} 12. Rc1 {[%emt 0:09:58]} Ne4 {[%emt 0:04:23]} 13. Nxe4 {[%emt 0:04:44]} dxe4 {[%emt 0:00:06]} 14. Bb1 {[%emt 0:00:12]} cxd4 {[%emt 0:08:06]} 15. Nxd7 {[%emt 0:05:19]} Qxd7 $11 {[%emt 0:00:06]} 16. Qxd4 {[%emt 0:00:12]} Qxd4 {[%emt 0:00:10]} 17. Bxd4 {[%emt 0:02:34]} f5 {[%emt 0:02:30]} 18. Kf2 {[%emt 0:04:11]} Rfd8 {[%emt 0:08:36]} 19. Rcd1 {[%emt 0:03:16]} Bc6 {[%emt 0:06:46]} 20. h3 {[%emt 0:02:01]} g5 {[%emt 0:02:21]} 21. g4 {[%emt 0:00:26]} gxf4 {[%emt 0:01:54]} 22. exf4 {[%emt 0:04:16]} Rxd4 {[%emt 0:03:41]} 23. Rxd4 {[%emt 0:00:09]} Bc5 {[%emt 0:00:03]} 24. Rfd1 {[%emt 0:01:33]} Rd8 {[%emt 0:00:07]} 25. Ke3 {[%emt 0:00:54]} e5 {[%emt 0:00:14]} 26. fxe5 {[%emt 0:00:30]} Bxd4+ {[%emt 0:00:21]} 0-1

[Event "WYCC 2018 G18"]
[Site "Halkidiki"]
[Date "2018.10.21"]
[Round "3"]
[White "Prakapuk, Vera"]
[Black "Priyanka, Kumari"]
[Result "0-1"]
[ECO "B51"]
[WhiteElo "1949"]
[BlackElo "2005"]
[Annotator "NA RC"]
[PlyCount "150"]
[EventDate "2018.10.20"]
[EventType "swiss"]
[EventCountry "GRE"]
[SourceTitle "playchess.com"]
[Source "ChessBase"]
[SourceQuality "1"]
[TimeControl "40/5400+30:1800+30"]

1. e4 {[%emt 0:00:00]} c5 {[%emt 0:00:12]} 2. Nf3 {[%emt 0:00:00]} d6 {[%emt 0:00:17]} 3. Bb5+ {[%emt 0:00:00]} Nd7 {[%emt 0:00:10]} 4. O-O {[%emt 0:00:00]} a6 {[%emt 0:00:16]} 5. Bd3 {[%emt 0:00:09] B51: Sicilian: Moscow Variation (3 Bb5+) without 3...Bd7} Ngf6 {[%emt 0:00:14]} 6. c3 {[%emt 0:00:07]} (6. Re1 g6 7. c3 Bg7 8. Bc2 O-O 9. d4 e5 10. a4 cxd4 11. cxd4 exd4 12. Nxd4 Nc5 {1-0 (33) Jakovenko,D (2748)-Nepomniachtchi,I (2768) Satka 2018}) 6... g6 {[%emt 0:01:28]} 7. Bc2 {[%emt 0:00:15]} e5 {[%emt 0:00:55]} 8. d4 {[%emt 0:01:28]} Qc7 $146 {[%emt 0:00:26]} ({Predecessor:} 8... Bg7 9. Nbd2 Qc7 10. a4 O-O 11. a5 cxd4 12. cxd4 {½-½ (43) Zielinski,M (2125)-Maj,P (2078) Jastrzebia Gora 2015}) 9. h3 {[%emt 0:02:41]} Bg7 {[%emt 0:00:28]} 10. Be3 {[%emt 0:01:19]} b5 {[%emt 0:00:50]} 11. Nbd2 {[%emt 0:01:16]} O-O {[%emt 0:00:38]} 12. d5 {[%emt 0:07:08]} c4 {[%emt 0:02:58]} 13. Ne1 {[%emt 0:07:47]} Nh5 {[%emt 0:03:35]} 14. g4 {[%emt 0:02:56]} Nf4 {[%emt 0:04:38]} 15. Bxf4 {[%emt 0:25:40]} exf4 {[%emt 0:00:20]} 16. Ndf3 {[%emt 0:06:45]} h6 {[%emt 0:04:05]} 17. Ng2 {[%emt 0:07:03]} g5 {[%emt 0:04:52]} 18. Nd4 {[%emt 0:07:15]} Re8 {[%emt 0:02:03]} 19. a4 {[%emt 0:06:19]} Rb8 {[%emt 0:22:44]} 20. Nc6 {[%emt 0:02:15]} Rb7 {[%emt 0:01:09]} 21. axb5 {[%emt 0:00:42]} axb5 {[%emt 0:01:28]} 22. Ne1 {[%emt 0:06:11]} Ne5 {[%emt 0:02:51]} 23. Nxe5 {[%emt 0:01:33]} Bxe5 {[%emt 0:00:27]} 24. Nf3 {[%emt 0:00:14]} Bf6 {[%emt 0:00:18]} 25. Nd4 {[%emt 0:02:24]} Bd7 {[%emt 0:00:51]} 26. Qf3 {[%emt 0:00:55]} Be5 {[%emt 0:01:24]} 27. Kg2 {[%emt 0:00:41]} Kg7 {[%emt 0:00:42]} 28. Rh1 {[%emt 0:01:38]} Rh8 {[%emt 0:00:48]} 29. Nf5+ {[%emt 0:03:34]} Bxf5 {[%emt 0:00:29]} 30. exf5 {[%emt 0:01:27]} Qe7 {[%emt 0:00:47]} 31. Rhe1 {[%emt 0:01:47]} Qf6 {[%emt 0:00:39]} 32. Re4 {[%emt 0:02:51]} Rc8 {[%emt 0:00:26]} 33. Ra6 {[%emt 0:00:34]} Rc5 {[%emt 0:08:44]} 34. Re1 {[%emt 0:00:38]} Qe7 {[%emt 0:08:06]} 35. Rc6 {[%emt 0:00:50]} Rc7 {[%emt 0:00:27]} 36. Rxc7 {[%emt 0:00:43]} Rxc7 {[%emt 0:03:47]} 37. Qe4 {[%emt 0:00:29]} Kf6 {[%emt 0:00:43]} 38. Rb1 {[%emt 0:00:24]} Rc5 {[%emt 0:00:58]} 39. Rd1 {[%emt 0:00:30]} Qb7 {[%emt 0:00:23]} 40. Bb1 {[%emt 0:00:00]} b4 {[%emt 0:00:00]} 41. Ba2 {[%emt 0:09:08]} bxc3 {[%emt 0:07:24]} 42. bxc3 {[%emt 0:00:09]} Qa6 {[%emt 0:00:21]} 43. Qe2 {[%emt 0:02:57]} Bxc3 {[%emt 0:05:55]} 44. Rc1 {[%emt 0:01:47]} Qa3 {[%emt 0:01:55]} 45. Rc2 {[%emt 0:00:30]} Qb4 {[%emt 0:03:38]} 46. Qe4 {[%emt 0:02:24]} Qa5 {[%emt 0:04:28]} 47. Bxc4 {[%emt 0:00:36]} Be5 {[%emt 0:00:50]} 48. Qd3 {[%emt 0:03:57]} Qa7 {[%emt 0:02:33]} 49. Ra2 {[%emt 0:00:58]} Qc7 {[%emt 0:00:24]} 50. Rc2 {[%emt 0:00:16]} Qa5 {[%emt 0:01:51]} 51. Ra2 {[%emt 0:00:41]} Qb4 {[%emt 0:00:25]} 52. Rc2 {[%emt 0:00:59]} Qb1 {[%emt 0:02:24]} 53. f3 {[%emt 0:10:03]} Ra5 {[%emt 0:01:48]} 54. Re2 {[%emt 0:02:19]} Qa1 {[%emt 0:06:25]} 55. Rf2 {[%emt 0:01:24]} Ra3 {[%emt 0:04:18]} 56. Qe2 {[%emt 0:00:39]} Qd4 {[%emt 0:02:02]} 57. Qe4 {[%emt 0:00:28]} Qxe4 {[%emt 0:03:29]} 58. fxe4 {[%emt 0:00:01]} Re3 {[%emt 0:00:26]} 59. Ba2 {[%emt 0:01:12]} Rxe4 {[%emt 0:00:18]} 60. Bb1 {[%emt 0:00:25]} Re1 {[%emt 0:00:21]} 61. Bd3 {[%emt 0:00:36]} Bd4 {[%emt 0:00:37]} 62. Rf3 {[%emt 0:00:29]} (62. Rf1 {only move.} Re5 63. Bc4) 62... Rg1+ {[%emt 0:01:02]} 63. Kh2 {[%emt 0:00:01]} Ke5 {[%emt 0:00:32]} 64. Bc4 $2 {[%emt 0:00:51]} (64. Rf1 Rg3 65. Bc4) 64... Rc1 {[%emt 0:00:32]} 65. Bf1 {[%emt 0:00:35]} (65. Bd3 $142 Rd1 66. Bf1) 65... Kxd5 {[%emt 0:00:37]} 66. Bg2 {[%emt 0:00:14]} Ke5 {[%emt 0:00:28]} 67. Rf1 {[%emt 0:00:23]} Rc2 {[%emt 0:04:25]} 68. Kh1 {[%emt 0:00:02]} Be3 {[%emt 0:00:34]} 69. Rd1 {[%emt 0:00:26]} Rc5 {[%emt 0:00:21]} (69... f3 $142 70. Bf1 Kf4 71. Bd3 Rg2 72. Rf1 Bf2 73. Rxf2 Rxf2 74. Bb5 Kg3 75. Kg1 Rd2 76. Bf1 Rd1 77. f6 f2+ 78. Kh1 Rxf1#) 70. Bf3 {[%emt 0:00:56]} d5 {[%emt 0:00:12]} 71. Kg2 {[%emt 0:00:21]} Rc2+ {[%emt 0:00:22]} 72. Kh1 {[%emt 0:00:25]} d4 {[%emt 0:00:18]} 73. Bg2 {[%emt 0:00:49] [#]} f3 $1 {[%emt 0:01:39]} 74. Bxf3 {[%emt 0:00:24]} Kf4 {[%emt 0:00:11]} 75. Bg2 {[%emt 0:01:05]} Kg3 {[%emt 0:00:08]} 0-1